bitfinex/quotes_ETHUSD_20251117
["timestamp","ask_amount","ask_price","bid_price","bid_amount"]
[1763363481464,0.6419,3202.9,3202.2,0.184]
[1763363481869,1.0957,3202.9,3202.2,0.184]
[1763363482900,0.4538,3202.8,3202.1,0.005]
[1763363483169,0.4538,3202.8,3202.1,0.189]
[1763363483883,0.1703,3202.9,3202.1,0.189]
[1763363484105,0.4538,3203.2,3202.2,0.4999]
[1763363485770,0.61869251,3203.4,3202.2,0.4999]
[1763363485967,0.002,3202.9,3202.2,0.4999]
[1763363486473,0.002,3202.9,3202.8,0.4649]
[1763363488301,0.002,3202.9,3202.8,0.9648]
[1763363488710,0.002,3202.9,3202.8,5.22080881]
[1763363488919,0.002,3203.3,3202.9,1.5392448]
[1763363489098,0.002,3204.0,3203.2,1.7838408]
[1763363489408,0.002,3204.0,3203.9,0.4649]
[1763363489798,0.002,3204.0,3203.9,0.9648]
[1763363493488,0.002,3204.0,3203.9,0.4649]
[1763363493808,0.002,3204.0,3203.9,0.9648]
[1763363494014,0.002,3204.0,3203.9,4.08599604]
[1763363495822,0.002,3204.0,3203.9,5.21973684]
[1763363496320,0.002,3204.7,3204.4,0.405504]
[1763363496552,0.005,3204.9,3204.7,0.405504]
[1763363496703,0.005,3204.9,3204.8,0.4649]
[1763363496905,0.005,3204.9,3204.8,0.9648]
[1763363499338,0.005,3204.9,3204.8,0.4649]
[1763363500432,0.005,3204.9,3204.8,0.9648]
[1763363501002,0.005,3204.9,3204.8,0.4649]
[1763363501437,0.6816,3204.9,3204.0,1.1337408]
[1763363501595,0.6436,3204.9,3204.1,0.4999]
[1763363501796,0.005,3204.9,3204.1,0.4999]
[1763363502216,0.1898,3204.9,3204.0,0.4999]
[1763363502446,0.6436,3204.9,3204.0,0.4999]
[1763363502648,0.1898,3204.9,3204.0,1.6336408]
[1763363503017,0.005,3204.9,3204.1,0.4999]
[1763363503213,0.1898,3204.9,3204.1,0.4999]
[1763363503421,0.4918,3204.2,3203.5,0.4999]
[1763363505111,0.4918,3204.2,3204.0,0.001]
[1763363507811,0.4538,3204.7,3204.1,0.4649]
[1763363508448,0.4538,3204.7,3204.0,0.001]
[1763363510421,0.48976491,3204.6,3204.0,0.001]
[1763363510818,0.4918,3204.1,3204.0,0.001]
[1763363511023,0.48976491,3204.6,3204.1,0.6851]
[1763363511226,0.48976491,3204.6,3204.4,0.4649]
[1763363511428,0.48976491,3204.6,3204.5,0.4607]
[1763363511644,0.007,3204.9,3204.5,0.9605]
[1763363511846,0.007,3204.9,3204.8,0.4607]
[1763363512079,0.007,3204.9,3204.1,0.1852]
[1763363512080,0.007,3204.9,3204.1,3.30616854]
[1763363512389,0.007,3204.9,3204.3,0.4998]
[1763363517141,0.007,3204.9,3204.8,0.4607]
[1763363517863,0.007,3204.9,3204.3,3.62058859]
[1763363518175,0.007,3204.9,3204.3,0.4998]
[1763363518791,0.4968,3204.4,3204.0,0.001]
[1763363518946,0.6632,3204.9,3204.0,0.001]
[1763363519147,0.4968,3204.1,3204.0,0.001]
[1763363519908,0.9614,3204.1,3204.0,0.001]
[1763363520579,0.4968,3204.1,3204.0,0.001]
[1763363520947,0.9614,3204.1,3204.0,0.001]
[1763363521280,0.4968,3204.1,3204.0,0.001]
[1763363521487,0.9614,3204.1,3204.0,0.001]
[1763363525782,6.15508901,3204.1,3204.0,0.001]
[1763363525983,0.405504,3203.9,3203.6,0.001]
[1763363526314,5.86899301,3203.7,3203.6,0.001]
[1763363526610,6.22022017,3203.7,3203.6,0.001]
[1763363527163,5.92808901,3203.7,3203.6,0.001]
[1763363528416,6.6252705,3203.7,3203.6,0.001]
[1763363528715,7.28779755,3203.7,3203.6,0.001]
[1763363529275,1.5392448,3203.6,3203.3,0.001]
[1763363529597,6.07819301,3203.4,3203.3,0.001]
[1763363529891,6.54279301,3203.4,3203.3,0.001]
[1763363530097,6.13728901,3203.4,3203.3,0.001]
[1763363530298,6.76991791,3203.4,3203.3,0.001]
[1763363530666,7.25993437,3203.4,3203.3,0.001]
[1763363531099,7.66543837,3203.4,3203.3,0.001]
[1763363531584,6.53169757,3203.4,3203.3,0.001]
[1763363533114,2.47174936,3203.4,3203.3,0.001]
[1763363533309,5.89906867,3203.4,3203.3,0.001]
[1763363534501,5.40905221,3203.4,3203.3,0.001]
[1763363534908,5.00354821,3203.4,3203.3,0.001]
[1763363537204,2.0773408,3203.4,3203.3,0.001]
[1763363537504,6.13728901,3203.4,3203.3,0.001]
[1763363537807,6.80099791,3203.4,3203.3,0.001]
[1763363542050,6.80099791,3203.4,3203.3,0.4785]
[1763363542051,0.6637089,3203.4,3203.3,0.4785]
[1763363542347,0.1916,3203.7,3203.3,0.4785]
[1763363542553,0.6668,3203.7,3203.3,0.4785]
[1763363542700,0.6668,3203.7,3203.3,0.001]
[1763363542900,0.4752,3203.6,3203.3,0.001]
[1763363543102,0.4591,3203.4,3203.3,0.001]
[1763363543506,0.9343,3203.4,3203.3,0.001]
[1763363543701,0.4591,3203.4,3203.3,0.001]
[1763363544152,0.9343,3203.4,3203.3,0.001]
[1763363544602,1.1337408,3203.7,3203.3,0.001]
[1763363544809,0.42515482,3203.6,3203.3,0.001]
[1763363545160,0.864604,3203.4,3203.3,0.001]
[1763363545573,1.339804,3203.4,3203.3,0.001]
[1763363545784,2.4735448,3203.4,3203.3,0.001]
[1763363546090,2.76466376,3203.4,3203.3,0.001]
[1763363546384,2.76466376,3203.4,3202.9,0.001]
[1763363546581,4.56605221,3203.0,3202.9,0.001]
[1763363546946,5.04125221,3203.0,3202.9,0.001]
[1763363549472,5.33305217,3203.0,3202.9,0.001]
[1763363553775,4.92754817,3203.0,3202.9,0.001]
[1763363555050,6.46679297,3203.0,3202.9,0.001]
[1763363555249,4.46545221,3202.7,3202.6,0.001]
[1763363555565,6.34649297,3202.7,3202.6,0.001]
[1763363555774,6.82169297,3202.7,3202.6,0.001]
[1763363555945,6.94687272,3202.7,3202.6,0.001]
[1763363557959,7.62099539,3202.7,3202.6,0.001]
[1763363558153,8.38309493,3202.7,3202.6,0.001]
[1763363558801,0.405504,3202.6,3202.1,0.005]
[1763363558950,4.56955221,3202.2,3202.1,0.005]
[1763363559152,4.86135217,3202.2,3202.1,0.005]
[1763363559380,0.857504,3202.1,3201.5,0.001]
[1763363559553,4.75545221,3201.8,3201.5,0.001]
[1763363559753,1.1337408,3201.7,3201.5,0.001]
[1763363559957,2.35154076,3201.7,3201.5,0.001]
[1763363560256,2.47676792,3201.7,3201.5,0.001]
[1763363560443,3.18922993,3201.7,3201.5,0.001]
[1763363562871,3.18907857,3201.7,3201.5,0.001]
[1763363564873,3.59458257,3201.7,3201.5,0.001]
[1763363567361,0.405504,3201.6,3201.5,0.001]
[1763363567687,0.2916486,3201.6,3201.5,0.001]
[1763363567851,0.1824,3202.3,3201.5,0.9417]
[1763363568062,0.12519267,3202.2,3201.6,0.4775]
[1763363568292,1.1337408,3202.1,3201.6,0.4775]
[1763363568759,1.1337408,3202.1,3201.7,0.4632]
[1763363569162,1.1337408,3202.1,3202.0,0.4775]
[1763363569623,4.05994821,3202.5,3202.0,0.4775]
[1763363569899,1.5928408,3202.1,3201.5,0.001]
[1763363570091,1.1337408,3202.1,3201.6,0.4632]
[1763363570473,1.1337408,3202.1,3201.5,0.001]
[1763363570688,1.1337408,3202.1,3201.5,0.4642]
[1763363571301,1.1337408,3202.1,3202.0,0.4775]
[1763363571506,4.05994821,3202.2,3202.0,0.4775]
[1763363571664,0.4775,3202.3,3202.1,0.4939]
[1763363572009,0.405504,3202.3,3202.1,0.4939]
[1763363573504,0.405504,3202.3,3202.2,0.4939]
[1763363573801,1.1337408,3202.7,3202.2,0.9586]
[1763363573998,0.29122736,3202.6,3202.3,0.4939]
[1763363574178,0.29122736,3202.6,3202.3,0.9586]
[1763363574372,0.29122736,3202.6,3202.5,0.4939]
[1763363574578,0.905129,3202.6,3202.1,0.1894]
[1763363574903,0.29122736,3202.5,3202.1,0.6541]
[1763363575404,0.29144842,3202.6,3202.1,0.6541]
[1763363576205,0.29144842,3202.6,3202.2,0.4647]
[1763363576609,0.29144842,3202.6,3202.5,0.4939]
[1763363576779,0.407504,3202.9,3202.5,0.9586]
[1763363576979,0.29147466,3202.8,3202.6,0.4939]
[1763363577384,0.29147466,3202.8,3202.2,0.4647]
[1763363577690,0.29147466,3202.8,3202.7,0.4939]
[1763363578012,0.29147466,3202.8,3202.3,0.4647]
[1763363578390,1.42521546,3202.8,3202.3,0.4647]
[1763363578585,1.78924378,3202.8,3202.3,0.4647]
[1763363580027,1.78924378,3202.8,3202.1,0.1894]
[1763363580221,2.27284378,3202.8,3202.1,0.6541]
[1763363580394,1.78924378,3202.8,3202.1,0.6541]
[1763363580579,1.78924378,3202.8,3202.2,0.4647]
[1763363580780,0.64523582,3202.7,3202.2,0.4647]
[1763363581383,4.66311438,3202.9,3202.6,0.4939]
[1763363581384,0.002,3202.9,3202.6,0.4939]
[1763363581713,0.84124457,3204.0,3202.2,0.4647]
[1763363581714,0.002,3204.0,3203.5,0.4939]
[1763363581880,0.002,3204.0,3203.8,0.4939]
[1763363582084,0.002,3204.0,3203.8,0.9586]
[1763363582279,0.002,3204.0,3203.9,0.9586]
[1763363583836,0.002,3204.4,3203.9,0.9586]
[1763363584027,0.002,3204.4,3204.3,0.6833]
[1763363584424,0.002,3204.4,3204.3,1.148]
[1763363589336,0.002,3204.4,3204.3,0.4939]
[1763363592027,0.002,3204.4,3204.0,0.1894]
[1763363592233,0.002,3204.4,3204.0,0.6541]
[1763363593857,0.4962,3204.1,3203.3,0.4647]
[1763363594656,0.405504,3204.0,3203.3,0.4647]
[1763363595448,0.405504,3204.3,3203.3,0.4657]
[1763363595650,0.20248448,3204.2,3203.3,0.4657]
[1763363595959,0.002,3204.4,3204.3,0.4939]
[1763363596157,0.002,3204.4,3204.3,0.6833]
[1763363596331,0.002,3204.4,3204.0,0.1894]
[1763363596520,0.002,3204.4,3204.0,0.6541]
[1763363596720,0.002,3204.4,3204.3,0.4939]
[1763363597158,0.002,3204.4,3204.3,0.9463]
[1763363602829,0.002,3204.4,3204.3,0.9779]
[1763363605539,0.002,3204.4,3204.3,0.481]
[1763363606166,0.002,3204.4,3204.3,0.9779]
[1763363606884,0.002,3204.4,3204.3,0.9479]
[1763363613599,0.002,3204.4,3204.3,5.20244721]
[1763363614200,0.002,3204.4,3204.3,5.60795121]
[1763363615101,0.002,3204.4,3204.3,0.9479]
[1763363615400,0.002,3204.4,3204.3,0.481]
[1763363615774,0.002,3204.4,3204.0,0.001]
[1763363616097,0.4863,3204.4,3204.0,0.001]
[1763363616593,0.002,3204.4,3204.0,0.001]
[1763363617101,0.002,3204.4,3204.3,0.481]
[1763363617303,0.002,3204.4,3204.0,0.001]
[1763363620821,0.4843,3204.1,3204.0,0.001]
[1763363621306,0.002,3204.4,3204.0,0.001]
[1763363621508,0.4742,3204.4,3204.0,0.001]
[1763363621692,0.4843,3204.1,3204.0,0.001]
[1763363622185,0.9565,3204.1,3204.0,0.001]
[1763363622503,0.4843,3204.1,3204.0,0.482]
[1763363622702,0.002,3204.4,3204.0,0.482]
[1763363622906,0.29227125,3204.3,3204.0,0.482]
[1763363623081,0.4843,3204.1,3204.0,0.001]
[1763363623486,0.4722,3204.3,3204.0,0.001]
[1763363624008,0.4843,3204.1,3204.0,0.001]
[1763363625703,0.9565,3204.1,3204.0,0.001]
[1763363627015,1.44632462,3204.1,3204.0,0.001]
[1763363627203,0.9565,3204.1,3204.0,0.001]
[1763363628582,1.65422648,3204.1,3204.0,0.001]
[1763363628783,1.81964913,3204.1,3204.0,0.001]
[1763363629183,0.1121,3203.7,3203.3,0.001]
[1763363629519,0.405504,3203.2,3202.9,0.001]
[1763363629815,4.78451438,3203.0,3202.9,0.001]
[1763363630014,5.07673686,3203.0,3202.9,0.001]
[1763363630219,6.05661055,3203.0,3202.9,0.001]
[1763363631210,5.76438807,3203.0,3202.9,0.001]
[1763363631720,7.18958356,3203.0,3202.9,0.001]
[1763363631932,0.405504,3202.8,3202.6,0.001]
[1763363632234,1.060604,3202.7,3202.6,0.001]
[1763363632419,1.32693848,3202.7,3202.6,0.001]
[1763363632731,1.79593848,3202.7,3202.6,0.001]
[1763363633032,1.39043448,3202.7,3202.6,0.001]
[1763363633894,1.1241,3202.7,3202.6,0.001]
[1763363636854,5.19191184,3202.7,3202.6,0.001]
[1763363639213,6.32565264,3202.7,3202.6,0.001]
[1763363639418,1.5392448,3202.6,3202.1,0.005]
[1763363639638,4.21661184,3202.2,3202.1,0.005]
[1763363639823,4.63827302,3202.2,3202.1,0.005]
[1763363640005,5.10727302,3202.2,3202.1,0.005]
[1763363643249,4.63827302,3202.2,3202.1,0.005]
[1763363643446,0.57046118,3202.2,3202.1,0.005]
[1763363643633,0.1488,3202.2,3202.1,0.005]
[1763363643838,0.63898715,3202.2,3202.1,0.005]
[1763363644026,0.95108715,3202.2,3202.1,0.005]
[1763363645353,1.42008715,3202.2,3202.1,0.005]
[1763363645525,0.95108715,3202.2,3202.1,0.005]
[1763363646152,1.42008715,3202.2,3202.1,0.005]
[1763363649340,5.48789899,3202.2,3202.1,0.005]
[1763363649568,6.03668889,3202.2,3202.1,0.005]
[1763363650662,1.03897705,3202.2,3202.1,0.6505]
[1763363650869,0.49018715,3202.2,3202.1,0.4684]
[1763363653634,0.002,3203.0,3202.1,1.1059]
[1763363653635,1.1337408,3202.9,3202.1,1.1059]
[1763363653954,1.1337408,3202.9,3202.6,0.4634]
[1763363654276,0.29129213,3202.8,3202.6,0.4634]
[1763363654483,0.002,3203.0,3202.6,0.4634]
[1763363654661,0.469,3202.9,3202.2,0.4554]
[1763363654837,0.2912907,3202.8,3202.2,0.4554]
[1763363656176,0.002,3203.0,3202.7,0.4634]
[1763363656338,0.002,3203.0,3202.9,0.4634]
[1763363656738,0.9319,3203.0,3202.2,0.4554]
[1763363657384,0.9319,3203.0,3202.1,0.1871]
[1763363657563,0.469,3202.9,3202.1,0.1871]
[1763363657763,0.4629,3203.0,3202.2,0.4554]
[1763363658105,0.002,3203.0,3202.2,0.4554]
[1763363658281,0.29231617,3202.9,3202.2,0.4554]
[1763363658649,0.29230074,3202.8,3202.2,0.4554]
[1763363658870,0.002,3203.0,3202.2,0.4554]
[1763363659070,0.29230428,3202.9,3202.2,0.4554]
[1763363659388,0.29230428,3202.8,3202.2,0.4554]
[1763363659568,0.29250211,3202.7,3202.2,0.4554]
[1763363659777,0.471,3203.0,3202.2,0.4554]
[1763363659946,0.29250555,3202.9,3202.2,0.4554]
[1763363660151,0.29250555,3202.8,3202.2,0.4554]
[1763363660378,0.29250555,3202.7,3202.1,0.1871]
[1763363660678,0.471,3203.0,3202.1,0.1871]
[1763363660997,0.29248555,3202.9,3202.1,0.6425]
[1763363661204,0.29248555,3202.8,3202.1,0.6425]
[1763363661368,1.6047408,3203.0,3202.1,0.1871]
[1763363661692,0.4716,3202.2,3202.1,0.005]
[1763363661897,5.23742924,3202.2,3202.1,0.005]
[1763363662099,6.83787004,3202.2,3202.1,0.005]
[1763363662560,1.5392448,3202.1,3202.0,0.001]
[1763363662765,3.85925661,3202.1,3202.0,0.001]
[1763363663463,4.69518917,3202.1,3201.7,0.001]
[1763363663676,6.26985664,3201.8,3201.7,0.001]
[1763363663905,7.23647132,3201.8,3201.7,0.001]
[1763363664215,7.70437132,3201.8,3201.7,0.001]
[1763363664500,8.47480845,3201.8,3201.7,0.001]
[1763363666213,7.80070717,3201.8,3201.7,0.001]
[1763363666896,7.39520317,3201.8,3201.7,0.001]
[1763363667205,3.32739133,3201.8,3201.7,0.001]
[1763363667373,2.5569542,3201.8,3201.7,0.001]
[1763363668002,6.62476604,3201.8,3201.7,0.001]
[1763363669413,1.4262542,3201.8,3201.7,0.001]
[1763363669612,1.4262542,3201.8,3201.7,0.4555]
[1763363670104,0.2925134,3201.8,3201.7,0.001]
[1763363670301,0.2925134,3202.1,3201.7,0.4555]
[1763363670606,0.2925134,3202.0,3201.7,0.001]
[1763363670810,0.2925134,3201.9,3201.7,0.001]
[1763363671041,0.2925134,3202.0,3201.7,0.001]
[1763363671250,0.2925134,3201.9,3201.7,0.001]
[1763363671399,0.4753,3201.8,3201.7,0.001]
[1763363671600,0.2925134,3201.8,3201.7,0.4801]
[1763363671796,0.2925134,3202.1,3201.7,0.9346]
[1763363672237,0.002,3202.2,3201.7,0.9346]
[1763363672434,0.2925134,3202.1,3201.7,0.4801]
[1763363672645,0.2925134,3202.1,3201.7,0.001]
[1763363674250,0.2945134,3202.2,3201.7,0.001]
[1763363674602,0.2945134,3202.2,3202.1,0.4545]
[1763363674805,0.002,3202.6,3202.1,4.25161184]
[1763363675029,0.002,3203.0,3202.5,5.20155264]
[1763363675236,0.002,3203.4,3202.9,5.20155264]
[1763363675439,0.002,3203.4,3203.2,4.06781184]
[1763363676315,0.002,3203.4,3203.0,5.60705664]
[1763363678133,0.002,3203.4,3202.3,4.06781184]
[1763363678333,0.002,3203.4,3202.4,1.1337408]
[1763363678534,0.002,3203.4,3202.2,1.1337408]
[1763363679558,0.002,3203.4,3202.6,1.1337408]
[1763363680325,0.002,3203.4,3202.3,1.1337408]
[1763363681156,0.002,3203.4,3202.6,1.1337408]
[1763363681460,0.002,3203.4,3202.8,4.06781184]
[1763363681658,0.002,3203.4,3202.2,0.405504]
[1763363681953,0.002,3203.4,3202.4,1.1337408]
[1763363684066,0.002,3203.4,3202.3,1.1347408]
[1763363684264,0.002,3203.4,3202.3,0.001]
[1763363684265,0.4699,3203.4,3202.3,0.001]
[1763363684430,0.48998227,3203.2,3202.3,0.001]
[1763363685747,0.95788227,3203.2,3202.3,0.001]
[1763363690979,0.4679,3203.1,3202.3,0.001]
[1763363691336,0.66,3202.4,3202.3,0.001]
[1763363691934,0.9552,3202.4,3202.3,0.001]
[1763363692539,0.9552,3202.4,3201.9,0.001]
[1763363692540,0.405504,3202.3,3201.9,0.001]
[1763363692762,0.4704,3202.0,3201.9,0.001]
[1763363693367,0.9552,3202.0,3201.9,0.001]
[1763363696077,0.4848,3202.4,3201.9,0.001]
[1763363700784,0.1992,3202.5,3201.9,0.001]
[1763363701500,0.4848,3202.4,3201.9,0.001]
[1763363701805,0.4704,3202.0,3201.9,0.001]
[1763363702253,1.42781164,3202.0,3201.9,0.001]
[1763363702448,0.4704,3202.0,3201.9,0.001]
[1763363702896,0.9552,3202.0,3201.9,0.001]
[1763363703246,0.002,3202.4,3201.9,0.001]
[1763363703446,0.4868,3202.4,3201.9,0.001]
[1763363703656,0.002,3202.4,3201.9,0.0022]
[1763363703853,0.002,3202.4,3201.9,0.001]
[1763363704054,0.002,3202.4,3202.3,0.0012]
[1763363704252,0.002,3202.4,3202.3,4.2569164]
[1763363704482,0.002,3202.4,3202.3,4.2581164]
[1763363704796,0.002,3202.4,3202.3,5.7973612]
[1763363705154,0.002,3202.4,3202.3,4.6636204]
[1763363709304,0.002,3202.4,3202.3,5.7973612]
[1763363709513,0.002,3202.4,3202.3,4.6636204]
[1763363710184,0.002,3202.8,3202.4,0.405504]
[1763363710370,0.002,3202.8,3202.7,5.3906572]
[1763363710898,0.002,3202.8,3202.7,5.3918572]
[1763363712602,0.002,3202.8,3202.7,8.5142227]
[1763363713166,0.002,3202.8,3202.7,5.3918572]
[1763363713813,0.002,3202.8,3202.7,8.5142227]
[1763363714184,0.002,3202.8,3202.7,5.7973612]
[1763363714510,0.002,3202.8,3202.7,8.9197267]
[1763363715279,0.002,3202.8,3202.7,5.7973612]
[1763363716424,0.002,3202.8,3202.7,1.1337408]
[1763363716913,0.002,3202.8,3202.2,4.2557164]
[1763363717116,0.002,3202.8,3202.3,1.1337408]
[1763363718425,0.4673,3202.7,3201.9,0.001]
[1763363718923,0.4673,3202.7,3201.9,1.1347408]
[1763363719689,0.002,3202.8,3202.2,4.2557164]
[1763363720290,0.464,3202.3,3201.9,0.001]
[1763363720823,0.4673,3202.7,3201.9,0.001]
[1763363721431,0.4673,3202.7,3202.3,0.001]
[1763363722226,0.464,3202.4,3202.3,0.001]
[1763363722630,0.9202,3202.4,3202.3,0.001]
[1763363723944,0.464,3202.4,3202.3,0.001]
[1763363724105,0.4562,3202.7,3202.3,0.001]
[1763363724853,0.002,3202.8,3202.3,0.001]
[1763363725030,0.002,3202.8,3202.7,0.0012]
[1763363725231,0.002,3202.8,3202.3,0.001]
[1763363725423,0.4582,3202.8,3202.3,0.001]
[1763363726849,0.4562,3202.7,3202.3,0.001]
[1763363727650,0.4991,3202.4,3202.3,0.001]
[1763363728014,0.9553,3202.4,3202.3,0.001]
[1763363729626,0.4991,3202.4,3202.3,0.001]
[1763363730217,0.4562,3202.7,3202.3,0.001]
[1763363731254,0.002,3202.8,3202.3,0.001]
[1763363731445,0.4562,3202.7,3202.3,0.001]
[1763363731755,0.002,3202.8,3202.3,0.001]
[1763363731959,0.4582,3202.8,3202.3,0.001]
[1763363732361,0.4991,3202.4,3202.3,0.001]
[1763363732571,0.4991,3202.4,3201.9,0.001]
[1763363732766,0.4582,3202.8,3201.9,0.001]
[1763363732767,0.4991,3202.0,3201.9,0.001]
[1763363733060,0.4991,3202.0,3201.7,0.001]
[1763363733295,0.4991,3201.6,3201.4,0.001]
[1763363733429,0.9553,3201.5,3201.4,0.001]
[1763363735159,0.4991,3201.5,3201.4,0.001]
[1763363735952,0.9553,3201.5,3201.4,0.001]
[1763363736247,0.4562,3201.8,3201.4,0.001]
[1763363737569,0.4991,3201.5,3201.4,0.001]
[1763363738066,0.9553,3201.5,3201.4,0.001]
[1763363741869,1.44551846,3201.5,3201.4,0.001]
[1763363742690,0.49021846,3201.5,3201.4,0.001]
[1763363742992,6.48,3202.6,3201.4,0.0072]
[1763363742993,0.4562,3202.1,3201.4,0.0072]
[1763363743757,0.6887504,3202.5,3202.0,0.0062]
[1763363743982,0.002,3202.7,3202.0,0.0062]
[1763363744368,0.4582,3202.7,3202.0,0.0062]
[1763363745994,0.4991,3202.1,3201.4,0.001]
[1763363746888,0.4562,3202.3,3201.4,0.001]
[1763363747089,0.94633167,3202.6,3201.4,0.0072]
[1763363747491,0.4562,3202.5,3201.4,0.0072]
[1763363748601,0.49013167,3202.6,3201.7,4.2557164]
[1763363748765,0.002,3202.7,3201.7,4.2557164]
[1763363748962,0.002,3202.7,3202.1,4.2557164]
[1763363751388,0.002,3202.7,3201.8,0.0062]
[1763363751586,0.002,3202.7,3201.9,4.2557164]
[1763363751768,0.476,3202.0,3201.4,0.001]
[1763363752109,0.476,3201.5,3201.4,0.001]
[1763363752476,0.9723,3201.5,3201.4,0.001]
[1763363752681,0.476,3201.3,3200.8,0.001]
[1763363752987,0.476,3201.0,3200.8,0.001]
[1763363753186,0.6436,3200.9,3200.8,0.001]
[1763363753600,1.1399,3200.9,3200.8,0.001]
[1763363756177,0.6436,3200.9,3200.8,0.001]
[1763363756383,0.476,3200.9,3200.8,0.001]
[1763363756682,0.9723,3200.9,3200.8,0.001]
[1763363757086,0.1838,3201.2,3200.8,0.001]
[1763363757286,0.6801,3201.2,3200.8,0.001]
[1763363758016,0.1838,3201.2,3200.8,0.001]
[1763363758180,0.4963,3201.1,3200.8,0.001]
[1763363759396,0.476,3200.9,3200.8,0.001]
[1763363759602,0.4963,3201.1,3200.8,0.001]
[1763363760125,0.476,3200.9,3200.8,0.001]
[1763363760837,0.9723,3200.9,3200.8,0.001]
[1763363762841,0.6801,3201.4,3200.8,0.0182]
[1763363763040,0.6801,3201.4,3200.8,0.001]
[1763363763207,0.4963,3201.3,3200.8,0.001]
[1763363763421,0.476,3200.9,3200.8,0.001]
[1763363763854,0.4963,3201.3,3200.8,0.001]
[1763363764027,0.002,3201.5,3200.8,0.001]
[1763363764528,0.4983,3201.5,3200.8,0.001]
[1763363766120,0.476,3200.9,3200.8,0.001]
[1763363766766,0.9723,3200.9,3200.8,0.001]
[1763363770571,2.5115448,3200.9,3200.8,0.001]
[1763363770864,0.405504,3200.7,3200.4,0.001]
[1763363771066,6.08652251,3200.5,3200.4,0.001]
[1763363771454,6.58282251,3200.5,3200.4,0.001]
[1763363772357,1.5392448,3200.4,3200.1,0.006]
[1763363772558,0.881504,3200.2,3200.1,0.006]
[1763363772736,6.33767699,3200.2,3200.1,0.006]
[1763363772945,6.83397699,3200.2,3200.1,0.006]
[1763363773345,2.76269928,3200.2,3200.1,0.006]
[1763363773541,2.35719528,3200.2,3200.1,0.006]
[1763363774546,2.76269928,3200.2,3200.1,0.006]
[1763363775350,2.35719528,3200.2,3200.1,0.006]
[1763363775550,2.1060408,3200.2,3200.1,0.006]
[1763363776074,0.9723,3200.2,3200.1,0.006]
[1763363778369,0.4741,3200.6,3200.1,0.006]
[1763363778576,0.4741,3200.5,3200.1,0.006]
[1763363778771,0.4955,3200.2,3200.1,0.006]
[1763363779259,0.9696,3200.2,3200.1,0.006]
[1763363780543,0.4955,3200.2,3200.1,0.006]
[1763363780743,0.4741,3200.5,3200.1,0.006]
[1763363782480,0.4966,3200.2,3200.1,0.006]
[1763363784693,0.4557,3201.4,3200.1,0.0404]
[1763363784855,0.4557,3201.4,3200.4,0.0172]
[1763363787653,0.4557,3201.4,3200.1,0.006]
[1763363787948,0.45289777,3201.3,3200.1,0.006]
[1763363788373,0.4557,3201.2,3200.1,0.006]
[1763363790993,0.002,3201.5,3201.1,0.0172]
[1763363791177,0.002,3201.5,3201.4,0.0172]
[1763363791858,0.002,3201.5,3201.2,4.07127771]
[1763363793179,0.002,3201.5,3201.2,7.19509712]
[1763363793370,0.002,3201.5,3201.2,4.07127771]
[1763363794983,0.002,3201.5,3201.0,1.1337408]
[1763363796391,0.002,3201.5,3200.9,4.07127771]
[1763363797409,0.002,3201.5,3201.2,4.07127771]
[1763363797814,0.002,3201.5,3201.3,1.1337408]
[1763363798525,0.002,3201.5,3201.3,4.25746081]
[1763363798749,0.002,3201.5,3201.4,0.405504]
[1763363800325,0.002,3202.2,3201.6,0.405504]
[1763363800492,0.002,3202.7,3202.4,0.405504]
[1763363800692,0.002,3202.7,3202.6,4.07127771]
[1763363802327,0.002,3202.7,3202.6,4.47678171]
[1763363802626,0.005,3202.9,3202.7,4.6616103]
[1763363803016,0.005,3202.9,3202.7,5.20501851]
[1763363804102,0.005,3202.9,3202.7,1.1337408]
[1763363804303,0.005,3202.9,3202.7,5.20501851]
[1763363805127,0.005,3202.9,3202.7,5.61052251]
[1763363805316,0.005,3202.9,3202.7,8.73288801]
[1763363805851,0.002,3203.7,3202.7,8.73288801]
[1763363805852,0.002,3203.7,3202.8,1.5392448]
[1763363806153,0.005,3203.9,3203.7,1.1337408]
[1763363806453,0.005,3203.9,3203.8,0.405504]
[1763363806748,0.005,3203.9,3203.8,1.5392448]
[1763363807349,0.005,3203.9,3203.8,4.66053826]
[1763363807560,0.005,3203.9,3203.8,1.5392448]
[1763363808929,0.005,3203.9,3203.8,4.66053826]
[1763363810558,0.002,3204.1,3204.0,0.405504]
[1763363810731,0.002,3204.1,3204.0,8.73162113]
[1763363811634,0.002,3204.1,3204.0,5.61052251]
[1763363812373,0.002,3204.1,3204.0,8.73162113]
[1763363813380,0.005,3204.9,3204.0,11.85271975]
[1763363813578,0.005,3204.9,3204.3,5.20501851]
[1763363813766,0.1908,3204.9,3204.3,5.20501851]
[1763363813971,0.005,3204.9,3204.3,5.20501851]
[1763363815381,0.1908,3204.9,3204.3,5.20501851]
[1763363815599,0.1908,3204.9,3204.4,1.5392448]
[1763363815600,0.005,3204.9,3204.4,1.5392448]